fUSD/lending_fUSD_20260225
["ID","MTS","AMOUNT","RATE_DAILY","PERIOD"]
[406653803,1772037045023,-2000.0,0.00015342,2]
[406653804,1772037045033,-2000.0,0.00015342,2]
[406653805,1772037045043,-1597.09510233,0.00015342,2]
[406653806,1772037045051,-2000.0,0.00015342,2]
[406653807,1772037045060,-2000.0,0.00015342,2]
[406653809,1772037045070,-2000.0,0.00015342,2]
[406653810,1772037045080,-1538.67533251,0.00015342,2]
[406653811,1772037045089,-2000.0,0.00015342,2]
[406653812,1772037045099,-2000.0,0.00015342,2]
[406653813,1772037045109,-17145.16964714,0.00015398,2]
[406653814,1772037045119,-2699.1638655,0.00015401,2]
[406653815,1772037045128,-490.05,0.00015753,2]
[406653816,1772037045137,-429.49570382,0.0001589,2]
[406653817,1772037045147,-2500.0,0.0001589,2]
[406653818,1772037045156,-2500.0,0.0001589,2]
[406653819,1772037045166,-215.41849404,0.0001589,2]
[406653820,1772037045176,-2500.0,0.0001589,2]
[406653821,1772037045185,-2208.62062,0.0001589,2]
[406653822,1772037045195,-2500.0,0.0001589,2]
[406653823,1772037045204,-516.10263761,0.0001589,2]
[406653824,1772037045214,-1341.04939345,0.0001589,2]
[406653825,1772037045224,-2019.14759919,0.0001589,2]
[406653826,1772037045233,-2500.0,0.0001589,2]
[406653827,1772037045244,-700.42773043,0.0001589,2]
[406653828,1772037045254,-2500.0,0.0001589,2]
[406653829,1772037045263,-2500.0,0.0001589,2]
[406653830,1772037045273,-505.60534384,0.0001589,2]
[406653831,1772037045282,-614.542994,0.0001589,2]
[406653832,1772037045292,-1500.0,0.0001602,2]
[406653833,1772037045301,-1115.33881024,0.000162,5]
[406653834,1772037045311,-3789.1674656,0.00016291,2]
[406653835,1772037045321,-1000.0,0.00016356,2]
[406653836,1772037045331,-500.0,0.00016356,2]
[406653837,1772037045341,-500.0,0.00016356,2]
[406653838,1772037045351,-1053.3,0.00016438,2]
[406653839,1772037045361,-490.05,0.00016438,2]
[406653840,1772037045371,-266.68789925,0.00016438,2]
[406653841,1772037045381,-3000.0,0.00016438,2]
[406653842,1772037045391,-1528.27485084,0.00016438,2]
[406653843,1772037045401,-1187.89476674,0.00016438,2]
[406653844,1772037045410,-2984.08045004,0.00016438,2]
[406653845,1772037045420,-1273.75528776,0.00016438,2]
[406653846,1772037045431,-1041.36883601,0.00016438,2]
[406653847,1772037045441,-3000.0,0.00016438,2]
[406653848,1772037045452,-17145.16964714,0.00016649,2]
[406653849,1772037045462,-2699.1638655,0.0001665,2]
[406653850,1772037045472,-1053.3,0.00016712,2]
[406653851,1772037045482,-200.0,0.00016792,2]
[406653852,1772037045491,-1217.60091854,0.000169,2]
[406653853,1772037045502,-289.8779064,0.00016983,2]
[406653854,1772037045512,-1053.3,0.00016986,2]
[406653855,1772037045522,-291.80881226,0.00016986,2]
[406653856,1772037045531,-3500.0,0.00016986,2]
[406653857,1772037045651,-110783.69499395,0.00017,2]
[406653858,1772037045660,-500.0,0.00017,5]
[406653859,1772037045670,-500.0,0.00017,2]
[406653860,1772037045680,-500.0,0.00017,2]
[406653861,1772037045689,-500.0,0.00017,5]
[406653862,1772037045699,-364.33297037,0.00017,2]
[406653863,1772037045708,-151.0,0.00017099,2]
[406653864,1772037045718,-156.587,0.00017099,2]
[406653865,1772037045728,-162.380719,0.00017099,2]
[406653866,1772037045738,-160.11759511,0.00017099,2]
[406653867,1772037045747,-277.35679052,0.00017099,2]
[406653868,1772037045757,-658.40784,0.000171,2]
[406653869,1772037045767,-350.0,0.00017136,2]
[406653870,1772037045776,-1053.3,0.0001726,2]
[406653871,1772037045785,-4500.0,0.000173,6]
[406653872,1772037045795,-2843.0,0.0001736,2]
[406653873,1772037045804,-1340.0,0.00017383,2]
[406653874,1772037045814,-5982.0,0.00017383,2]
[406653875,1772037045826,-413.0,0.00017383,2]
[406653876,1772037045837,-1217.60091852,0.000174,2]
[406653877,1772037045847,-900.0,0.000174,6]
[406653878,1772037045857,-409.29299491,0.00017449,2]
[406653879,1772037045867,-300.0,0.00017449,5]
[406653880,1772037045877,-151.0,0.00017491,2]
[406653881,1772037045886,-1277.0,0.00017494,2]
[406653882,1772037045897,-920.0,0.00017494,2]
[406653883,1772037045907,-1210.0,0.00017494,2]
[406653884,1772037045917,-239.11314413,0.000175,2]
[406653885,1772037045927,-900.0,0.000175,6]
[406653886,1772037045936,-417.0,0.00017521,2]
[406653887,1772037045950,-1053.3,0.00017534,2]
[406653888,1772037045963,-4000.0,0.00017534,2]
[406653889,1772037045973,-417.0,0.00017535,2]
[406653890,1772037045983,-7028.9955058,0.00017537,2]
[406653891,1772037045993,-900.0,0.000176,6]
[406653892,1772037046003,-1634.5001398,0.0001764,2]
[406653893,1772037046012,-287.61899177,0.00017647,2]
[406653894,1772037046023,-1180.0,0.00017698,2]
[406653895,1772037046033,-500.0,0.00017698,2]
[406653896,1772037046042,-150.0,0.00017698,2]
[406653897,1772037046052,-150.0,0.00017698,2]
[406653898,1772037046062,-500.0,0.00017698,2]
[406653899,1772037046073,-900.0,0.000177,6]
[406653900,1772037046083,-239.11314411,0.000177,2]
[406653901,1772037046093,-2036.762,0.00017726,2]
[406653902,1772037046103,-151.383,0.00017726,2]
[406653903,1772037046113,-1000.0,0.00017726,2]
[406653904,1772037046122,-1000.0,0.00017726,7]
[406653905,1772037046133,-1180.0,0.00017753,2]
[406653907,1772037046143,-500.0,0.00017753,2]
[406653909,1772037046153,-150.0,0.00017753,2]
[406653911,1772037046164,-500.0,0.00017753,2]
[406653913,1772037046176,-1000.0,0.00017753,2]
[406653915,1772037046187,-417.0,0.00017756,2]
[406653917,1772037046197,-417.0,0.00017757,2]
[406653918,1772037046207,-1000.0,0.00017774,2]
[406653920,1772037046216,-1000.0,0.00017777,2]
[406653921,1772037046226,-350.0,0.00017777,2]
[406653922,1772037046237,-1000.0,0.00017783,2]
[406653923,1772037046246,-201.59337925,0.00017787,3]
[406653924,1772037046256,-350.0,0.00017789,2]
[406653925,1772037046266,-1000.0,0.0001779,2]
[406653926,1772037046275,-1117.0,0.000178,6]
[406653927,1772037046285,-1180.0,0.00017808,2]
[406653929,1772037046294,-219.84961923,0.00017808,2]
[406653931,1772037046304,-150.0,0.00017808,2]
[406653932,1772037046313,-500.0,0.00017808,2]
[406653933,1772037046323,-1053.3,0.00017808,2]
[406653934,1772037046333,-500.0,0.00017808,2]
[406653935,1772037046343,-500.0,0.00017808,2]
[406653936,1772037046353,-500.0,0.00017808,2]
[406653937,1772037046363,-500.0,0.00017808,2]
[406653938,1772037046373,-500.0,0.00017808,2]
[406653939,1772037046383,-500.0,0.00017808,2]
[406653940,1772037046392,-500.0,0.00017808,2]
[406653941,1772037046402,-500.0,0.00017808,2]
[406653942,1772037046412,-500.0,0.00017808,2]
[406653943,1772037046423,-500.0,0.00017808,2]
[406653944,1772037046433,-500.0,0.00017808,2]
[406653945,1772037046443,-500.0,0.00017808,2]
[406653946,1772037046453,-500.0,0.00017808,2]
[406653947,1772037046462,-500.0,0.00017808,2]
[406653948,1772037046471,-500.0,0.00017808,2]
[406653949,1772037046481,-500.0,0.00017808,2]
[406653950,1772037046492,-500.0,0.00017808,2]
[406653951,1772037046502,-500.0,0.00017808,2]
[406653952,1772037046512,-500.0,0.00017808,2]
[406653953,1772037046522,-500.0,0.00017808,2]
[406653954,1772037046531,-500.0,0.00017808,2]
[406653955,1772037046540,-500.0,0.00017808,2]
[406653956,1772037046550,-500.0,0.00017808,2]
[406653957,1772037046561,-500.0,0.00017808,2]
[406653958,1772037046570,-406.85728548,0.00017808,2]
[406653959,1772037046579,-150.0,0.00017808,2]
[406653960,1772037046589,-1000.0,0.00017809,2]
[406653961,1772037046598,-1000.0,0.00017811,2]
[406653962,1772037046608,-1000.0,0.00017812,2]
[406653963,1772037046618,-417.0,0.00017824,2]
[406653964,1772037046627,-1000.0,0.00017829,2]
[406653965,1772037046637,-17549.496941,0.0001783,2]
[406653966,1772037046646,-1030.10231547,0.00017833,2]
[406653967,1772037046656,-1000.0,0.00017843,2]
[406653968,1772037046665,-201.59337924,0.00017844,3]
[406653969,1772037046674,-1000.0,0.00017851,2]
[406653970,1772037046685,-417.0,0.00017859,2]
[406653971,1772037046695,-1180.0,0.00017862,2]
[406653972,1772037046705,-229.08432386,0.00017862,2]
[406653973,1772037046715,-500.0,0.00017862,2]
[406653974,1772037046724,-500.0,0.00017863,2]
[406653975,1772037046734,-25000.0,0.00017882,3]
[406653976,1772037046744,-1000.0,0.00017887,2]
[406653977,1772037046754,-1000.0,0.0001789,2]
[406653978,1772037046763,-25000.0,0.00017891,3]
[406653979,1772037046773,-1000.0,0.00017892,2]
[406653981,1772037046783,-10000.0,0.00017896,2]
[406653983,1772037046792,-417.0,0.00017898,2]
[406653984,1772037046802,-500.0,0.00017899,2]
[406653985,1772037046811,-25000.0,0.000179,3]
[406653986,1772037046822,-2699.1638655,0.000179,2]
[406653987,1772037046832,-201.59337924,0.000179,3]
[406653988,1772037046842,-239.11314411,0.000179,2]
[406653989,1772037046852,-3789.1674656,0.000179,2]
[406653990,1772037046861,-17145.16964714,0.000179,2]
[406653991,1772037046871,-8828.0,0.000179,2]
[406653992,1772037046881,-417.0,0.0001791,2]
[406653993,1772037046891,-1180.0,0.00017917,2]
[406653994,1772037046900,-500.0,0.00017917,2]
[406653995,1772037046910,-500.0,0.00017918,2]
[406653996,1772037046919,-1000.0,0.00017918,2]
[406653997,1772037046929,-1000.0,0.00017926,2]
[406653999,1772037046939,-1000.0,0.00017928,2]
[406654001,1772037046957,-1000.0,0.00017932,2]
[406654003,1772037046967,-1000.0,0.00017939,2]
[406654005,1772037046981,-1000.0,0.00017954,2]
[406654006,1772037046994,-1000.0,0.0001796,2]
[406654007,1772037047004,-1180.0,0.00017972,2]
[406654008,1772037047013,-500.0,0.00017972,2]
[406654009,1772037047024,-500.0,0.00017972,2]
[406654010,1772037047034,-1000.0,0.00017975,2]
[406654011,1772037047045,-1000.0,0.00017985,2]
[406654012,1772037047055,-200.0,0.00017996,5]
[406654013,1772037047065,-151.0,0.00017996,5]
[406654014,1772037047077,-151.0,0.00017996,5]
[406654015,1772037047087,-151.0,0.00017996,5]
[406654016,1772037047098,-151.0,0.00017996,5]
[406654017,1772037047108,-151.0,0.00017996,5]
[406654018,1772037047117,-151.0,0.00017996,5]
[406654019,1772037047128,-151.0,0.00017996,5]
[406654020,1772037047137,-151.0,0.00017996,5]
[406654021,1772037047147,-151.0,0.00017996,5]
[406654022,1772037047157,-151.0,0.00017996,5]
[406654023,1772037047168,-151.0,0.00017996,5]
[406654024,1772037047177,-500.0,0.00017996,5]
[406654025,1772037047188,-500.0,0.00017996,5]
[406654026,1772037047198,-500.0,0.00017996,5]
[406654027,1772037047208,-500.0,0.00017996,5]
[406654028,1772037047218,-500.0,0.00017996,5]
[406654029,1772037047228,-500.0,0.00017996,5]
[406654030,1772037047238,-500.0,0.00017996,5]
[406654031,1772037047248,-693.3919763,0.00017996,5]
[406654032,1772037047258,-500.0,0.00017996,5]
[406654033,1772037047267,-719.04747942,0.00017996,5]
[406654034,1772037047277,-500.0,0.00017996,5]
[406654035,1772037047287,-745.65223616,0.00017996,5]
[406654036,1772037047301,-500.0,0.00017996,5]
[406654038,1772037047314,-773.2413689,0.00017996,5]
[406654039,1772037047326,-500.0,0.00017996,5]
[406654040,1772037047335,-801.85129955,0.00017996,5]
[406654041,1772037047345,-831.51979763,0.00017996,5]
[406654042,1772037047356,-862.28603014,0.00017996,5]
[406654043,1772037047366,-153.75720399,0.00017997,2]
[406654044,1772037047377,-29684.3706045,0.00017999,2]
[406654045,1772037047387,-3113.2229569,0.00017999,2]
[406654046,1772037047396,-101582.4651231,0.00017999,2]
[406654047,1772037047406,-500.0,0.00017999,2]
[406654048,1772037047416,-500.0,0.00017999,2]
[406654049,1772037047426,-300.0,0.00017999,2]
[406654050,1772037047436,-23495.79848113,0.00017999,2]
[406654051,1772037047455,-3323.99559315,0.00017999,2]
[406654052,1772037047467,-677.068,0.00017999,2]
[406654053,1772037047482,-536.48030696,0.00017999,2]
[406654054,1772037047493,-98165.99999998,0.00017999,2]
[406654055,1772037047905,-1217.60091852,0.000179,2]
[406654056,1772037047915,-134335.66867468,0.00017999,2]
[406654057,1772037047925,-151.1566432,0.00017999,2]
[406654058,1772037047935,-21523.1807603,0.00017999,2]
[406654059,1772037047945,-15660.2080473,0.00017999,2]
[406654060,1772037047959,-5950.4496549,0.00017999,2]
[406654061,1772037047968,-300.0,0.00017999,2]
[406654062,1772037047979,-387.27991964,0.00017999,2]
[406654063,1772037047989,-272.08195776,0.00017999,2]
[406654064,1772037047999,-300.0,0.00017999,2]
[406654065,1772037048008,-666.0,0.00017999,2]
[406654066,1772037048018,-150.0,0.00017999,2]
[406654067,1772037048030,-153.9683345,0.00017999,2]
[406654068,1772037048040,-695642.15667252,0.00018,2]
[406654069,1772037048185,-4749.3541326,0.00018,2]
[406654070,1772037048290,-1044.24351443,0.00014499,2]
[406654071,1772037048300,-349484.61127746,0.00018,2]
[406654072,1772037048312,-316.1305,0.00018,2]
[406654073,1772037048330,-1117.93109944,0.00014499,2]
[406654074,1772037048339,-3306.36316051,0.00018,2]
[406654080,1772037213857,1013.39093139,6.5e-05,3]
[406654082,1772037403527,2329.88549934,6.5e-05,3]
[406654083,1772037404603,4754.06407302,6.5e-05,3]
[406654084,1772037405232,6574.22301104,6.5e-05,3]
[406654085,1772037406045,9845.03719787,6.5e-05,3]
[406654086,1772037406912,11049.4274967,6.5e-05,3]
[406654087,1772037447311,500.0,6.541e-05,2]
[406654096,1772037629443,5000.01,6.552e-05,2]
[406654097,1772037629472,5000.01,6.552e-05,2]
[406654098,1772037629500,5000.01,6.552e-05,2]
[406654099,1772037629526,5000.01,6.552e-05,2]
[406654100,1772037629553,5000.01,6.552e-05,2]
[406654101,1772037629587,5000.01,6.552e-05,2]
[406654102,1772037629620,5000.01,6.552e-05,2]
[406654103,1772037633592,-4500.01,6.552e-05,2]
[406654104,1772037633764,-5000.01,6.552e-05,2]
[406654105,1772037633880,-5000.01,6.552e-05,2]
[406654106,1772037634009,-5000.01,6.552e-05,2]
[406654107,1772037634149,-5000.01,6.552e-05,2]
[406654108,1772037634287,-5000.01,6.552e-05,2]
[406654109,1772037634440,-5000.01,6.552e-05,2]
[406654110,1772037636392,2329.88549934,6.5e-05,3]
[406654111,1772037636734,-5000.01,6.552e-05,2]
[406654112,1772037637268,4754.06407302,6.5e-05,3]
[406654113,1772037639578,-5000.01,6.552e-05,2]
[406654114,1772037643890,-5000.01,6.552e-05,2]
[406654115,1772037643972,-7619.54952995,6.552e-05,2]
[406654116,1772037644242,-10000.01,6.552e-05,2]
[406654117,1772037644385,-10000.01,6.552e-05,2]
[406654118,1772037644521,-10000.01,6.552e-05,2]
[406654119,1772037644640,-10000.01,6.552e-05,2]
[406654120,1772037644789,-10000.01,6.552e-05,2]
[406654121,1772037646876,-5000.01,6.552e-05,2]
[406654122,1772037649819,-5000.01,6.552e-05,2]
[406654123,1772037649927,-10000.01,6.552e-05,2]
[406654124,1772037650083,-10000.01,6.552e-05,2]
[406654125,1772037650184,-10000.01,6.552e-05,2]
[406654126,1772037650290,-10000.01,6.552e-05,2]
[406654127,1772037650401,-10000.01,6.552e-05,2]
[406654128,1772037650508,-10000.01,6.552e-05,2]
[406654129,1772037652610,-151.0,6.549e-05,2]
[406654130,1772037652641,-151.0,6.549e-05,2]
[406654131,1772037652689,-4396.01,6.552e-05,2]
[406654132,1772037655794,-5000.01,6.552e-05,2]
[406654133,1772037658671,-5000.01,6.552e-05,2]
[406654134,1772037695453,8885.64197816,6.452e-05,2]
[406654135,1772037696478,1114.36802184,6.42e-05,2]
[406654136,1772037696501,922.39397816,6.42e-05,2]
[406654137,1772037696704,151.383,6.42e-05,2]
[406654138,1772037770626,500.0,6.451e-05,2]
[406654139,1772037812667,-697.0,6.541e-05,2]
[406654140,1772037812715,-3606.01,6.542e-05,2]
[406654141,1772037812999,-5000.01,6.542e-05,2]
[406654142,1772037813142,-5000.01,6.542e-05,2]
[406654143,1772037813282,-756.30880709,6.542e-05,2]
[406654144,1772037813305,-3487.39238582,6.542e-05,2]
[406654145,1772037813404,-944.94766094,6.55e-05,2]
[406654146,1772037813431,-198.91601448,6.551e-05,2]
[406654147,1772037813459,-874.74945254,6.551e-05,2]
[406654148,1772037813512,-962.78374408,6.551e-05,2]
[406654149,1772037813545,-150.0,6.551e-05,2]
[406654150,1772037813574,-300.0,6.551e-05,2]
[406654151,1772037813635,-4100.01,6.552e-05,2]
[406654152,1772037815383,-5000.01,6.552e-05,2]
[406654153,1772037824432,-5000.01,6.552e-05,2]
[406654154,1772037824556,-5000.01,6.552e-05,2]
[406654155,1772037824672,-5000.01,6.552e-05,2]
[406654156,1772037824829,-5000.01,6.552e-05,2]
[406654157,1772037824972,-5000.01,6.552e-05,2]
[406654158,1772037835659,182.64,6.5e-05,2]
[406654159,1772037869663,2751.68368963,6.4e-05,3]
[406654160,1772037870593,5647.85123149,6.4e-05,3]
[406654161,1772037930326,500.0,6.451e-05,2]
[406654162,1772038121773,2751.68368963,6.4e-05,3]
[406654185,1772038209660,1468.22,3.408e-05,2]
[406654186,1772038209875,1468.22,3.554e-05,2]
[406654187,1772038210084,1468.22,3.701e-05,2]
[406654188,1772038210346,1468.22,3.848e-05,2]
[406654189,1772038210590,1468.22,3.995e-05,2]
[406654190,1772038210807,1468.22,4.141e-05,2]
[406654191,1772038211045,508.05,4.288e-05,2]
[406654192,1772038211074,960.17,4.288e-05,2]
[406654193,1772038211809,1468.22,4.435e-05,2]
[406654194,1772038211842,1468.22,4.582e-05,2]
[406654195,1772038211878,1468.22,4.728e-05,2]
[406654196,1772038211988,1468.22,4.875e-05,2]
[406654197,1772038212204,1468.22,5.022e-05,2]
[406654198,1772038212573,1468.22,5.169e-05,2]
[406654199,1772038213037,230.52,5.315e-05,2]
[406654200,1772038213061,1237.7,5.315e-05,2]
[406654201,1772038213240,1468.22,5.462e-05,2]
[406654202,1772038213480,1468.22,5.609e-05,2]
[406654203,1772038213691,1468.22,5.756e-05,2]
[406654204,1772038213745,193.0,4.717e-05,2]
[406654205,1772038213865,193.0,5.408e-05,2]
[406654206,1772038213942,1468.22,5.902e-05,2]
[406654207,1772038214179,1468.22,6.049e-05,2]
[406654208,1772038214534,1035.21,6.196e-05,2]
[406654209,1772038214556,433.01,6.196e-05,2]
[406654211,1772038231320,-241.99949174,6.528e-05,2]
[406654212,1772038231329,-218.51399421,6.534e-05,2]
[406654213,1772038231343,-831.64957871,6.534e-05,2]
[406654214,1772038231354,-2307.83693534,6.534e-05,2]
[406654215,1772038231365,-1641.99949174,6.534e-05,2]
[406654216,1772038231374,-250.0,6.539e-05,2]
[406654217,1772038231385,-3.78977301,6.542e-05,2]
[406654218,1772038231416,-296.21022699,6.542e-05,2]
[406654219,1772038231425,-300.0,6.542e-05,2]
[406654220,1772038231434,-300.0,6.542e-05,2]
[406654221,1772038231443,-828.78977301,6.542e-05,2]
[406654222,1772038231454,-371.21022699,6.542e-05,2]
[406654223,1772038231464,-1884.63901484,6.543e-05,2]
[406654224,1772038231475,-866.46,6.543e-05,2]
[406654225,1772038231487,-2248.90098516,6.543e-05,2]
[406654226,1772038231496,-5000.0,6.543e-05,2]
[406654227,1772038231505,-5000.0,6.543e-05,2]
[406654228,1772038231515,-250.0,6.546e-05,2]
[406654229,1772038231524,-150.0,6.55e-05,2]
[406654230,1772038231534,-1000.0,6.55e-05,2]
[406654231,1772038231543,-1279.02931103,6.552e-05,2]
[406654232,1772038231553,-5138.09436464,6.552e-05,2]
[406654233,1772038231562,-14660.12,6.642e-05,2]
[406654234,1772038231572,-9999.99,6.642e-05,2]
[406654235,1772038231581,-299.99,6.643e-05,2]
[406654236,1772038231591,-150.99,6.643e-05,2]
[406654238,1772038231600,-3368.97,6.643e-05,2]
[406654240,1772038231609,-3663.07,6.643e-05,2]
[406654242,1772038231619,-3839.28,6.643e-05,2]
[406654243,1772038231628,-999.99,6.643e-05,2]
[406654244,1772038231638,-516.09,6.643e-05,2]
[406654245,1772038231647,-9999.99,6.643e-05,2]
[406654247,1772038231657,-150.99,6.643e-05,2]
[406654248,1772038231668,-5919.71,6.643e-05,2]
[406654249,1772038231678,-9999.99,6.643e-05,2]
[406654250,1772038231687,-4999.99,6.643e-05,2]
[406654251,1772038231696,-1613.77,6.643e-05,2]
[406654252,1772038231706,-35025.06,6.643e-05,2]
[406654253,1772038231715,-549.24,6.65e-05,2]
[406654254,1772038231724,-1078.36665032,6.651e-05,2]
[406654255,1772038231733,-27887.5416057,6.736e-05,2]
[406654256,1772038231743,-900.0,6.8e-05,2]
[406654257,1772038231752,-5395.8,6.827e-05,2]
[406654258,1772038231762,-500.0,6.873e-05,2]
[406654259,1772038231772,-500.0,6.873e-05,2]
[406654260,1772038231781,-500.0,6.873e-05,2]
[406654261,1772038231791,-500.0,6.873e-05,2]
[406654262,1772038231799,-500.0,6.873e-05,2]
[406654263,1772038231809,-500.0,6.873e-05,2]
[406654264,1772038231818,-1800.0,6.9e-05,2]
[406654265,1772038231827,-549.24,6.924e-05,2]
[406654266,1772038231837,-2700.0,7e-05,2]
[406654267,1772038231846,-250.0,7.181e-05,2]
[406654268,1772038231856,-5000.0,7.181e-05,2]
[406654269,1772038231865,-420.0,7.196e-05,2]
[406654270,1772038231875,-420.0,7.196e-05,2]
[406654271,1772038231885,-1680.0,7.196e-05,2]
[406654272,1772038231895,-549.24,7.198e-05,2]
[406654273,1772038231906,-255.0,7.204e-05,2]
[406654274,1772038231916,-210.0,7.212e-05,2]
[406654275,1772038231926,-165.34117852,7.359e-05,2]
[406654276,1772038231935,-308.81499859,7.421e-05,2]
[406654277,1772038231944,-1010.4769589,7.421e-05,2]
[406654278,1772038231953,-532.01941831,7.421e-05,2]
[406654279,1772038231962,-1002.07392204,7.421e-05,2]
[406654280,1772038231971,-1000.0,7.421e-05,2]
[406654281,1772038231981,-1000.0,7.421e-05,2]
[406654282,1772038231991,-27887.5416057,7.441e-05,2]
[406654283,1772038232010,-549.24,7.472e-05,2]
[406654284,1772038232020,-58485.29,7.602e-05,2]
[406654285,1772038232030,-3193.58,7.615e-05,2]
[406654286,1772038232039,-549.24,7.746e-05,2]
[406654287,1772038232049,-5265.16,7.902e-05,2]
[406654288,1772038232059,-587.0,7.915e-05,2]
[406654289,1772038232068,-2351.0,7.915e-05,2]
[406654290,1772038232078,-433.0,7.925e-05,2]
[406654291,1772038232088,-41013.141306,7.945e-05,2]
[406654292,1772038232097,-500.0,7.968e-05,2]
[406654293,1772038232107,-1500.0,7.968e-05,2]
[406654294,1772038232116,-549.2537247,8.02e-05,2]
[406654295,1772038232126,-27887.5416057,8.147e-05,2]
[406654296,1772038232136,-11827.355654,8.178e-05,2]
[406654297,1772038232145,-1180.0,8.219e-05,2]
[406654298,1772038232155,-500.0,8.219e-05,2]
[406654299,1772038232165,-500.0,8.219e-05,2]
[406654300,1772038232176,-150.0,8.219e-05,2]
[406654301,1772038232185,-150.694395,8.219e-05,2]
[406654302,1772038232195,-188.367994,8.219e-05,2]
[406654303,1772038232204,-500.0,8.219e-05,2]
[406654304,1772038232213,-1180.0,8.274e-05,2]
[406654305,1772038232225,-500.0,8.274e-05,2]
[406654306,1772038232234,-500.0,8.274e-05,2]
[406654307,1772038232243,-150.0,8.274e-05,2]
[406654308,1772038232251,-1180.0,8.329e-05,2]
[406654309,1772038232261,-219.84961923,8.329e-05,2]
[406654310,1772038232271,-500.0,8.329e-05,2]
[406654311,1772038232280,-150.0,8.329e-05,2]
[406654312,1772038232291,-1180.0,8.383e-05,2]
[406654313,1772038232304,-500.0,8.383e-05,2]
[406654314,1772038232313,-229.08432386,8.383e-05,2]
[406654315,1772038232322,-1180.0,8.438e-05,2]
[406654316,1772038232331,-500.0,8.438e-05,2]
[406654317,1772038232341,-1180.0,8.493e-05,2]
[406654318,1772038232351,-500.0,8.493e-05,2]
[406654319,1772038232359,-500.0,8.493e-05,2]
[406654320,1772038232371,-500.0,8.516e-05,2]
[406654321,1772038232380,-1180.0,8.548e-05,2]
[406654322,1772038232390,-500.0,8.548e-05,2]
[406654323,1772038232399,-1180.0,8.603e-05,2]
[406654324,1772038232409,-300.0,8.603e-05,2]
[406654325,1772038232418,-250.0,8.626e-05,2]
[406654326,1772038232427,-1180.0,8.657e-05,2]
[406654327,1772038232437,-823.0,8.707e-05,2]
[406654328,1772038232446,-3292.0,8.707e-05,2]
[406654329,1772038232455,-1180.0,8.712e-05,2]
[406654330,1772038232464,-736.0,8.717e-05,2]
[406654331,1772038232473,-1180.0,8.767e-05,2]
[406654332,1772038232482,-500.0,8.767e-05,2]
[406654333,1772038232491,-1180.0,8.822e-05,2]
[406654334,1772038232501,-27887.5416057,8.852e-05,2]
[406654335,1772038232510,-1180.0,8.877e-05,2]
[406654336,1772038232519,-1180.0,8.931e-05,2]
[406654337,1772038232529,-1180.0,8.986e-05,2]
[406654338,1772038232538,-1180.0,9.041e-05,2]
[406654339,1772038232548,-500.0,9.041e-05,2]
[406654340,1772038232557,-1180.0,9.096e-05,2]
[406654341,1772038232566,-1180.0,9.151e-05,2]
[406654342,1772038232576,-1180.0,9.205e-05,2]
[406654343,1772038232585,-1180.0,9.26e-05,2]
[406654344,1772038232594,-1180.0,9.315e-05,2]
[406654345,1772038232603,-500.0,9.315e-05,2]
[406654346,1772038232612,-1180.0,9.37e-05,2]
[406654347,1772038232621,-1180.0,9.424e-05,2]
[406654348,1772038232630,-1182.0,9.479e-05,2]
[406654349,1772038232639,-4609.0,9.578e-05,2]
[406654350,1772038232648,-795.0,9.588e-05,2]
[406654351,1772038232658,-500.0,9.589e-05,2]
[406654352,1772038232667,-9999.99,9.67e-05,2]
[406654353,1772038232676,-4141.31,9.67e-05,2]
[406654354,1772038232685,-226.041593,9.793e-05,2]
[406654355,1772038232695,-427.46515504,9.863e-05,2]
[406654356,1772038232704,-19388.0,9.966e-05,2]
[406654357,1772038232713,-2000.0,0.0001,2]
[406654358,1772038232723,-725.89625088,0.0001,2]
[406654359,1772038232732,-725.89625088,0.0001,2]
[406654360,1772038232741,-725.89625088,0.0001,2]